bitfinex/quotes_SOLUSD_20250316
["timestamp","ask_amount","ask_price","bid_price","bid_amount"]
[1742154388239,7.98,127.26,127.23,0.0001]
[1742154389650,26.97332761,127.24,127.23,0.0001]
[1742154390041,45.90729961,127.24,127.23,0.0001]
[1742154391054,52.19459961,127.24,127.23,0.0001]
[1742154391634,51.91027647,127.24,127.23,0.0001]
[1742154391838,59.89027647,127.24,127.23,0.0001]
[1742154392455,14.2673,127.24,127.23,0.0001]
[1742154393147,6.2864,127.26,127.23,0.0001]
[1742154394255,33.25972761,127.26,127.23,0.0001]
[1742154396534,26.97332761,127.25,127.23,0.0001]
[1742154396735,6.2864,127.26,127.23,0.0001]
[1742154396938,26.97332761,127.24,127.23,0.0001]
[1742154397339,51.91027647,127.24,127.23,0.0001]
[1742154398153,33.26062761,127.24,127.23,0.0001]
[1742154399944,51.91027647,127.24,127.23,0.0001]
[1742154401463,51.94027647,127.24,127.23,0.0001]
[1742154402667,24.96694886,127.24,127.23,0.0001]
[1742154402869,6.3173,127.24,127.23,0.0001]
[1742154403058,0.03,127.24,127.23,0.0001]
[1742154404351,0.03,127.24,127.23,29.87562761]
[1742154405051,0.03,127.24,127.23,30.15995075]
[1742154405257,0.03,127.24,127.23,36.44775075]
[1742154409062,0.03,127.29,127.24,0.28432314]
[1742154409265,0.03,127.29,127.27,26.97332761]
[1742154409658,0.03,127.29,127.28,26.97332761]
[1742154412577,0.03,127.29,127.27,12.3126]
[1742154412771,0.03,127.29,127.28,26.97332761]
[1742154414960,0.03,127.29,127.28,36.34195075]
[1742154417277,0.03,127.29,127.28,29.77232761]
[1742154418786,0.03,127.29,127.27,107.77332761]
[1742154419783,0.03,127.29,127.27,26.97332761]
[1742154420164,0.03,127.29,127.26,26.97332761]
[1742154420363,0.03,127.29,127.25,29.77232761]
[1742154421463,0.03,127.29,127.26,26.97332761]
[1742154422677,0.03,127.29,127.27,26.97332761]
[1742154422883,0.03,127.29,127.28,26.97332761]
[1742154423067,0.03,127.29,127.28,16.88460035]
[1742154425284,0.03,127.29,127.28,23.16990035]
[1742154425475,0.03,127.29,127.28,16.88460035]
[1742154426681,0.03,127.29,127.28,23.16990035]
[1742154427386,0.03,127.29,127.28,16.88460035]
[1742154429387,0.03,127.29,127.28,23.16990035]
[1742154429687,0.03,127.29,127.28,23.45422349]
[1742154430086,0.03,127.29,127.28,29.56022349]
[1742154432170,0.03,127.29,127.28,33.42003897]
[1742154432372,0.03,127.29,127.28,20.74441583]
[1742154432675,0.03,127.29,127.28,27.31403897]
[1742154433280,0.03,127.29,127.28,20.74441583]
[1742154435001,0.03,127.29,127.28,16.88460035]
[1742154435181,0.03,127.29,127.27,16.88460035]
[1742154435782,0.03,127.29,127.28,16.88460035]
[1742154436305,0.03,127.29,127.27,16.88460035]
[1742154436478,0.03,127.29,127.26,16.88460035]
[1742154436677,0.03,127.29,127.25,2.799]
[1742154436909,0.03,127.29,127.26,16.88460035]
[1742154437280,0.03,127.29,127.27,16.88460035]
[1742154437482,0.03,127.29,127.26,16.88460035]
[1742154437886,0.03,127.29,127.27,16.88460035]
[1742154438201,0.03,127.29,127.28,16.88460035]
[1742154438494,0.03,127.29,127.26,16.88460035]
[1742154439799,0.03,127.29,127.27,16.88460035]
[1742154440498,0.03,127.29,127.25,9.0857]
[1742154440499,0.03,127.29,127.26,16.88460035]
[1742154440691,0.03,127.29,127.27,16.88460035]
[1742154442304,0.03,127.29,127.26,16.88460035]
[1742154442882,16.91460035,127.29,127.24,0.063]
[1742154443090,16.88460035,127.28,127.24,0.063]
[1742154443589,16.88460035,127.27,127.24,0.063]
[1742154444299,23.27870035,127.28,127.24,0.063]
[1742154444501,6.2854,127.28,127.24,16.94760035]
[1742154444704,0.03,127.29,127.25,16.88460035]
[1742154445603,0.03,127.29,127.26,16.88460035]
[1742154446905,0.03,127.29,127.25,16.88460035]
[1742154447103,16.91460035,127.29,127.24,16.94760035]
[1742154447489,35.53424921,127.28,127.24,0.063]
[1742154448103,6.2858,127.27,127.24,0.063]
[1742154448629,16.91460035,127.29,127.24,16.94760035]
[1742154448809,0.03,127.29,127.25,16.88460035]
[1742154449708,0.03,127.29,127.26,16.88460035]
[1742154450392,0.03,127.29,127.25,16.88460035]
[1742154451194,16.88460035,127.28,127.24,0.063]
[1742154451596,0.03,127.29,127.24,16.94760035]
[1742154451597,18.67964886,127.29,127.24,16.94760035]
[1742154452009,18.67964886,127.29,127.25,16.88460035]
[1742154452511,41.84914921,127.29,127.24,16.94760035]
[1742154453205,16.88460035,127.28,127.24,0.063]
[1742154453513,41.84914921,127.29,127.24,16.94760035]
[1742154455827,16.88460035,127.28,127.24,0.063]
[1742154456409,6.2853,127.28,127.24,16.94760035]
[1742154456620,24.82460035,127.27,127.24,0.063]
[1742154456809,16.88460035,127.25,127.24,0.063]
[1742154457591,35.53424921,127.25,127.24,0.063]
[1742154458494,41.82104921,127.25,127.24,0.063]
[1742154460311,42.10537235,127.25,127.24,0.063]
[1742154461902,42.10537235,127.25,127.24,0.0001]
[1742154462297,42.10537235,127.25,127.23,0.0001]
[1742154462298,18.79181043,127.24,127.23,0.0001]
[1742154462492,35.67641078,127.24,127.23,0.0001]
[1742154463408,36.58601078,127.24,127.23,0.0001]
[1742154463712,42.87331078,127.24,127.23,0.0001]
[1742154464291,83.97331078,127.24,127.23,0.0001]
[1742154465112,83.83114921,127.24,127.23,0.0001]
[1742154466609,82.92154921,127.24,127.23,0.0001]
[1742154467312,83.06371078,127.24,127.23,0.0001]
[1742154468014,83.20587235,127.24,127.23,0.0001]
[1742154469697,42.10587235,127.24,127.23,0.0001]
[1742154472627,38.79181043,127.21,127.2,0.063]
[1742154472809,63.61641078,127.21,127.2,0.063]
[1742154473201,69.90521078,127.21,127.2,0.063]
[1742154474493,69.76304921,127.21,127.2,0.063]
[1742154477414,70.04737235,127.21,127.2,0.063]
[1742154477594,35.67641078,127.2,127.19,0.063]
[1742154479098,35.53424921,127.2,127.19,0.063]
[1742154479597,24.93894886,127.2,127.19,0.063]
[1742154480016,41.82354921,127.2,127.19,0.063]
[1742154481323,49.90571078,127.2,127.19,0.063]
[1742154481619,66.79031113,127.2,127.19,0.063]
[1742154484509,49.90571078,127.2,127.19,0.0001]
[1742154484704,49.90571078,127.2,127.16,0.063]
[1742154484705,45.224172,127.18,127.16,0.063]
[1742154484928,35.67641078,127.17,127.16,0.063]
[1742154485924,35.67641078,127.17,127.12,0.063]
[1742154485925,0.14216157,127.16,127.12,0.063]
[1742154486112,35.53424921,127.13,127.12,0.063]
[1742154487718,35.67641078,127.13,127.12,0.063]
[1742154487919,41.96911078,127.13,127.12,0.063]
[1742154488228,83.21127235,127.13,127.12,0.063]
[1742154488427,83.06911078,127.13,127.12,0.063]
[1742154490031,83.21127235,127.13,127.12,0.063]
[1742154491917,25.08501043,127.12,127.11,0.063]
[1742154492147,41.96961078,127.12,127.11,0.063]
[1742154494316,0.3719,127.11,127.1,0.0001]
[1742154494511,36.19047235,127.11,127.1,0.0001]
[1742154495733,20.28432314,127.08,127.07,0.063]
[1742154495938,80.6431727,127.08,127.07,0.063]
[1742154496411,80.6431727,127.08,127.04,0.063]
[1742154496412,36.88460035,127.05,127.04,0.063]
[1742154496618,55.67641078,127.05,127.04,0.063]
[1742154497139,55.81857235,127.05,127.04,0.063]
[1742154497641,18.79181043,127.04,127.03,0.063]
[1742154497847,35.67641078,127.04,127.03,0.0001]
[1742154498441,42.11577235,127.04,127.03,0.0001]
[1742154499739,42.11577235,127.04,127.0,0.03]
[1742154499740,0.14216157,127.03,127.02,0.0001]
[1742154499941,60.48101113,127.03,127.02,0.0001]
[1742154500434,0.14216157,127.0,126.98,0.063]
[1742154500642,16.88460035,126.99,126.98,0.063]
[1742154500822,35.53424921,126.99,126.98,0.063]
[1742154501834,35.67641078,126.99,126.98,0.063]
[1742154502237,35.81857235,126.99,126.98,0.0001]
[1742154502732,41.97611078,126.99,126.98,0.0001]
[1742154502936,41.83394921,126.99,126.98,0.0001]
[1742154503121,49.75394921,126.99,126.98,0.0001]
[1742154505823,6.2993,127.0,126.98,0.0001]
[1742154506022,26.58964886,127.01,126.98,0.0001]
[1742154506224,43.47424921,127.01,126.98,0.0001]
[1742154506440,18.64964886,126.99,126.98,0.0001]
[1742154506645,16.88460035,126.99,126.98,0.0001]
[1742154508047,23.18430035,126.99,126.98,0.0001]
[1742154509848,24.94894886,127.0,126.98,0.0001]
[1742154510049,72.22330035,127.01,126.98,0.0001]
[1742154510643,7.92,127.0,126.98,0.0001]
[1742154511022,49.75354921,127.0,126.98,0.0001]
[1742154511221,35.53424921,126.99,126.98,0.0001]
[1742154513149,41.83394921,126.99,126.98,0.0001]
[1742154516955,41.97611078,126.99,126.98,0.0001]
[1742154517525,0.14216157,126.97,126.96,0.0001]
[1742154517841,18.79181043,126.94,126.91,1.5331]
[1742154518143,41.97951078,126.92,126.91,1.5331]
[1742154519530,41.83734921,126.92,126.87,1.5331]
[1742154519848,35.53424921,126.92,126.87,18.41770035]
[1742154520029,7.92,126.91,126.87,18.41770035]
[1742154520231,7.92,126.92,126.88,16.88460035]
[1742154520742,7.92,126.93,126.88,16.88460035]
[1742154521134,7.92,126.93,126.91,1.5331]
[1742154521341,7.92,126.93,126.92,6.5061]
[1742154522667,7.92,126.93,126.91,1.5331]
[1742154522947,35.53424921,126.92,126.91,1.5331]
[1742154523152,24.80460035,126.93,126.91,1.5331]
[1742154523354,7.92,126.93,126.91,1.5331]
[1742154523670,3.22,126.93,126.91,1.5331]
[1742154525532,35.53424921,126.95,126.91,1.5331]
[1742154525752,24.80460035,126.94,126.91,7.8367]
[1742154526237,24.80460035,126.94,126.91,1.5331]
[1742154527354,16.88460035,126.94,126.91,1.5331]
[1742154528748,23.18700035,126.94,126.91,1.5331]
[1742154529056,16.88460035,126.94,126.91,1.5331]
[1742154529354,18.64964886,126.93,126.91,1.5331]
[1742154530462,6.3002,126.98,126.92,16.88460035]
[1742154530636,43.45424921,126.97,126.92,16.88460035]
[1742154530841,18.64964886,126.95,126.92,16.88460035]
[1742154531342,31.10540035,126.97,126.92,16.88460035]
[1742154531543,18.64964886,126.96,126.92,16.88460035]
[1742154531755,18.64964886,126.96,126.93,16.88460035]
[1742154532155,18.64964886,126.96,126.92,16.88460035]
[1742154532655,0.063,126.95,126.91,1.5631]
[1742154532864,0.063,126.95,126.92,16.88460035]
[1742154534151,0.063,126.95,126.93,16.88460035]
[1742154535242,0.063,126.95,126.93,23.18720035]
[1742154535762,0.063,126.95,126.93,16.88460035]
[1742154536673,0.063,126.95,126.94,16.88460035]
[1742154537259,0.063,126.95,126.94,24.73520035]
[1742154537662,0.063,126.95,126.94,1.5485]
[1742154537878,16.94760035,126.95,126.94,1.5485]
[1742154538064,16.94760035,126.95,126.91,1.5785]
[1742154539562,0.063,126.95,126.91,18.46310035]
[1742154539861,0.063,126.95,126.92,16.88460035]
[1742154542645,16.94760035,126.95,126.91,1.5785]
[1742154542861,16.88460035,126.94,126.91,1.5785]
[1742154543043,6.3023,126.94,126.91,1.5785]
[1742154543744,18.64964886,126.94,126.91,18.46310035]
[1742154544256,0.063,126.95,126.91,24.76670035]
[1742154544565,18.64964886,126.94,126.92,0.03]
[1742154545074,6.3026,126.93,126.92,0.03]
[1742154545565,41.83684921,126.93,126.92,0.03]
[1742154546856,41.83684921,126.93,126.91,0.03]
[1742154546857,18.79181043,126.92,126.91,0.03]
[1742154547059,18.64964886,126.9,126.85,1.6317]
[1742154547243,16.88460035,126.88,126.85,1.6317]
[1742154547449,16.88460035,126.86,126.81,18.51630035]
[1742154547662,35.53424921,126.84,126.81,1.6317]
[1742154547960,18.64964886,126.86,126.82,16.88460035]
[1742154548369,35.53424921,126.86,126.81,18.51630035]
[1742154548564,18.64964886,126.86,126.82,16.88460035]
[1742154548758,24.80460035,126.87,126.82,16.88460035]
[1742154548964,18.64964886,126.86,126.83,16.88460035]
[1742154549550,6.3053,126.88,126.84,16.88460035]
[1742154549749,18.64964886,126.87,126.84,16.88460035]
[1742154549949,18.64964886,126.88,126.85,16.88460035]
[1742154550159,7.92,126.89,126.85,16.88460035]
[1742154550452,7.92,126.89,126.86,1.5265]
[1742154551064,7.92,126.89,126.86,18.41110035]
[1742154551462,7.92,126.89,126.87,16.88460035]
[1742154552757,7.92,126.89,126.86,18.41110035]
[1742154554655,7.92,126.89,126.86,24.71700035]
[1742154554875,18.64964886,126.92,126.88,16.88460035]
[1742154555970,24.95274886,126.92,126.88,16.88460035]
[1742154556458,7.92,126.93,126.89,16.88460035]
[1742154557056,0.063,126.95,126.91,1.6217]
[1742154557264,18.71264886,126.95,126.92,16.88460035]
[1742154557771,18.71264886,126.95,126.91,1.6217]
[1742154557772,16.88460035,126.93,126.91,1.6217]
[1742154557974,25.01454886,126.95,126.88,1.6217]
[1742154557975,16.88460035,126.92,126.88,1.6217]
[1742154558364,18.64964886,126.9,126.88,1.6217]
[1742154559374,7.9,126.91,126.88,1.6217]
[1742154559553,14.2037,126.91,126.88,1.6217]
[1742154561195,18.64964886,126.9,126.88,1.6217]
[1742154561569,6.3046,126.89,126.88,1.6217]
[1742154561765,6.3046,126.89,126.86,0.03]
[1742154562078,24.95424886,126.89,126.86,0.03]
[1742154562868,18.64964886,126.88,126.86,0.03]
[1742154563585,6.3056,126.87,126.86,0.03]
[1742154563887,24.95524886,126.87,126.86,0.03]
[1742154564178,35.53424921,126.87,126.86,0.03]
[1742154564578,18.64964886,126.87,126.86,0.03]
[1742154567780,35.53424921,126.87,126.86,0.03]
[1742154567988,41.83984921,126.87,126.86,0.03]
[1742154568711,41.98201078,126.87,126.86,0.03]
[1742154568888,42.12417235,126.87,126.86,0.03]
[1742154569183,42.12417235,126.87,126.79,0.03]
[1742154569184,18.64964886,126.83,126.79,0.03]
[1742154569389,18.64964886,126.81,126.79,0.03]
[1742154570582,7.9,126.82,126.8,16.88460035]
[1742154571763,18.64964886,126.84,126.8,16.88460035]
[1742154571764,18.64964886,126.83,126.8,16.88460035]
[1742154572767,35.53424921,126.83,126.79,0.03]
[1742154572971,14.2071,126.84,126.79,0.03]
[1742154572972,18.64964886,126.81,126.79,0.03]
[1742154574462,18.64964886,126.83,126.79,0.03]
[1742154575179,18.64964886,126.82,126.79,0.03]
[1742154576286,18.64964886,126.8,126.79,0.03]
[1742154576467,76.91857235,126.8,126.79,0.03]
[1742154576784,76.91857235,126.8,126.79,0.0001]
[1742154577690,67.64964886,126.8,126.79,0.0001]
[1742154577898,84.53424921,126.8,126.79,0.0001]
[1742154578186,91.12767235,126.8,126.79,0.0001]
[1742154580267,90.84334921,126.8,126.79,0.0001]
[1742154582675,91.12767235,126.8,126.79,0.0001]
[1742154582995,59.74964886,126.79,126.78,0.0001]
[1742154583184,20.0,126.7,126.66,0.03]
[1742154583370,43.43424921,126.69,126.66,0.03]
[1742154583898,7.9,126.69,126.66,16.91460035]
[1742154584085,7.9,126.69,126.67,1.6656]
[1742154584393,14.2147,126.69,126.67,1.6656]
[1742154584596,31.09930035,126.69,126.67,1.6656]
[1742154585185,41.50402692,126.69,126.67,1.6656]
[1742154585889,35.18932692,126.69,126.67,1.6656]
[1742154586276,18.64964886,126.68,126.67,1.6656]
[1742154588576,35.18932692,126.69,126.67,1.6656]
[1742154588795,18.64964886,126.71,126.67,28.95492692]
[1742154588975,18.64964886,126.72,126.68,27.28932692]
[1742154589702,7.9,126.73,126.69,27.28932692]
[1742154590083,18.64964886,126.74,126.7,27.28932692]
[1742154590698,18.64964886,126.74,126.7,33.60332692]
[1742154591399,18.64964886,126.74,126.7,27.28932692]
[1742154591895,18.64964886,126.74,126.7,33.60332692]
[1742154593001,18.64964886,126.75,126.72,27.28932692]
[1742154594397,7.9,126.76,126.73,28.90402692]
[1742154594602,7.9,126.76,126.73,1.6147]
[1742154595293,18.64964886,126.77,126.73,28.90402692]
[1742154596085,18.64964886,126.77,126.73,35.21652692]
[1742154596404,14.2103,126.78,126.74,27.28932692]
[1742154597106,52.24867578,126.79,126.74,27.28932692]
[1742154597602,27.28932692,126.77,126.73,7.7909]
[1742154597901,27.28932692,126.78,126.73,35.08022692]
[1742154598102,6.3106,126.77,126.73,35.08022692]
[1742154599298,6.3101,126.78,126.74,27.28932692]
[1742154599679,24.95934886,126.79,126.74,27.28932692]
[1742154599884,14.2093,126.8,126.75,27.28932692]
[1742154600380,14.2093,126.8,126.73,7.7909]
[1742154600381,45.93897578,126.79,126.73,7.7909]
[1742154600581,27.28932692,126.76,126.73,7.7909]
[1742154600800,27.28932692,126.76,126.73,1.6147]
[1742154601208,24.96114886,126.76,126.73,1.6147]
[1742154602707,40.73334886,126.79,126.73,1.6147]
[1742154602902,27.28932692,126.75,126.73,1.6147]
[1742154603107,35.18932692,126.75,126.73,1.6147]
[1742154603310,7.9,126.75,126.73,1.6147]
[1742154604214,0.063,126.77,126.73,28.90402692]
[1742154604403,0.063,126.77,126.74,27.28932692]
[1742154604907,0.063,126.77,126.76,27.28932692]
[1742154605105,0.063,126.77,126.75,27.28932692]
[1742154605899,0.063,126.77,126.76,27.28932692]
[1742154606293,0.063,126.77,126.75,27.28932692]
[1742154607095,0.063,126.77,126.76,17.0243658]
[1742154607922,0.063,126.77,126.75,17.0243658]
[1742154609000,0.063,126.77,126.76,17.0243658]
[1742154609200,0.063,126.77,126.76,23.3886658]
[1742154614596,0.063,126.77,126.76,17.0243658]
[1742154615216,0.063,126.77,126.75,17.0243658]
[1742154615414,0.063,126.77,126.76,17.0243658]
[1742154617719,0.063,126.77,126.76,23.3354658]
[1742154617917,0.063,126.77,126.76,17.0243658]
[1742154621520,0.063,126.77,126.76,23.3354658]
[1742154621702,30.2973,126.86,126.76,23.3354658]
[1742154621703,7.943,126.86,126.78,12.885]
[1742154621902,7.943,126.86,126.81,17.0243658]
[1742154622723,6.3693,126.86,126.81,17.0243658]
[1742154622909,6.3693,126.86,126.82,17.0243658]
[1742154623994,6.3693,126.86,126.83,18.6042658]
[1742154623995,0.063,126.86,126.83,18.6042658]
[1742154624324,0.063,126.86,126.84,17.0243658]
[1742154624498,0.063,126.86,126.85,17.0243658]
[1742154625812,0.063,126.86,126.85,23.5992658]
[1742154626596,0.063,126.86,126.85,29.9058658]
[1742154627208,0.063,126.86,126.85,30.19018894]
[1742154628599,0.063,126.9,126.89,17.0243658]
[1742154629132,0.063,126.9,126.89,17.30868894]
[1742154629823,15.8173,126.95,126.89,17.0243658]
[1742154630000,32.8416658,126.95,126.9,17.0243658]
[1742154630713,6.3021,126.94,126.9,17.0243658]
[1742154632102,6.3647,126.95,126.92,17.0243658]
[1742154632804,0.063,126.95,126.91,17.0243658]
[1742154633118,17.0243658,126.93,126.88,17.0243658]
[1742154633329,18.64964886,126.92,126.87,17.0243658]
[1742154633540,35.67401466,126.89,126.86,1.5799]
[1742154633830,35.67401466,126.89,126.83,17.0243658]
[1742154634001,17.0243658,126.87,126.82,18.6290658]
[1742154634326,17.0243658,126.87,126.79,208.7]
[1742154634327,17.0243658,126.83,126.79,1.6047]
[1742154634526,17.0243658,126.84,126.79,18.6290658]
[1742154634826,6.3071,126.84,126.81,17.0243658]
[1742154635017,6.3061,126.86,126.82,17.0243658]
[1742154635220,6.3061,126.86,126.83,27.21260584]
[1742154635605,6.3061,126.86,126.82,27.21260584]
[1742154636027,52.1680547,126.87,126.82,27.21260584]
[1742154637331,45.8622547,126.85,126.8,27.21260584]
[1742154637625,27.21260584,126.83,126.79,1.6047]
[1742154637828,27.21260584,126.84,126.79,28.81730584]
[1742154638026,18.64964886,126.83,126.79,27.21260584]
[1742154638530,18.64964886,126.83,126.78,27.21260584]
[1742154639130,18.64964886,126.83,126.76,1.6047]
[1742154639131,24.95864886,126.81,126.76,1.6047]
[1742154639432,52.1712547,126.81,126.76,28.81730584]
[1742154639618,27.21260584,126.78,126.73,27.24260584]
[1742154639820,27.21260584,126.77,126.73,0.03]
[1742154640029,27.21260584,126.78,126.73,0.03]
[1742154640231,27.21260584,126.78,126.73,27.24260584]
[1742154640528,45.8622547,126.79,126.73,27.24260584]
[1742154641308,33.52270584,126.78,126.73,27.24260584]
[1742154641523,45.8622547,126.77,126.73,0.03]
[1742154642533,27.21260584,126.75,126.73,0.03]
[1742154643312,33.52460584,126.75,126.73,0.03]
[1742154643825,6.312,126.75,126.73,0.03]
[1742154644011,24.96164886,126.75,126.73,0.03]
[1742154644214,18.64964886,126.76,126.73,0.03]
[1742154644536,14.1902,126.78,126.73,27.24260584]
[1742154644832,26.52964886,126.78,126.74,27.21260584]
[1742154645027,18.64964886,126.78,126.74,27.21260584]
[1742154645531,24.95984886,126.78,126.74,27.21260584]
[1742154646013,24.95984886,126.78,126.73,27.24260584]
[1742154647129,45.8622547,126.77,126.73,0.03]
[1742154647331,27.21260584,126.75,126.73,0.03]
[1742154648537,18.64964886,126.75,126.73,0.03]
[1742154649213,24.96134886,126.75,126.73,0.03]
[1742154652532,24.96074886,126.77,126.73,0.03]
[1742154653231,60.0533547,126.77,126.73,0.03]
[1742154653430,24.96074886,126.77,126.73,27.24260584]
[1742154653633,32.84074886,126.77,126.73,27.24260584]
[1742154656316,60.0533547,126.77,126.73,0.03]
[1742154657938,32.84074886,126.77,126.73,0.03]
[1742154659237,60.0533547,126.77,126.73,0.03]
[1742154660238,33.52420584,126.75,126.73,0.03]
[1742154662541,6.3116,126.75,126.73,0.03]
[1742154664223,41.99841543,126.76,126.73,0.03]
[1742154664536,24.96094886,126.76,126.73,0.03]
[1742154666627,14.1907,126.77,126.73,18.57346657]
[1742154667720,31.22816657,126.77,126.73,1.536]
[1742154668040,14.1907,126.77,126.73,18.57346657]
[1742154668342,35.68711543,126.76,126.73,1.536]
[1742154668647,17.03746657,126.75,126.73,0.03]
[1742154668846,35.68711543,126.76,126.73,0.03]
[1742154669946,18.64964886,126.74,126.73,0.03]
[1742154671127,24.96174886,126.74,126.73,0.03]
[1742154673732,6.3118,126.75,126.73,0.03]
[1742154674039,18.64964886,126.75,126.73,0.03]
[1742154674247,14.1908,126.77,126.73,17.06746657]
[1742154674421,6.3098,126.79,126.74,17.03746657]
[1742154674622,7.86,126.8,126.74,17.03746657]
[1742154674825,35.68711543,126.79,126.74,17.03746657]
[1742154675147,18.64964886,126.8,126.76,17.03746657]
[1742154675463,31.20576657,126.82,126.76,23.34856657]
[1742154675646,23.34576657,126.82,126.76,23.34856657]
[1742154675830,31.20576657,126.82,126.77,17.03746657]
[1742154676844,18.64964886,126.81,126.77,17.03746657]
[1742154677040,17.03746657,126.8,126.75,17.03746657]
[1742154677846,35.68711543,126.81,126.76,17.03746657]
[1742154678238,35.68711543,126.81,126.77,17.03746657]
[1742154678423,14.1683,126.82,126.77,17.03746657]
[1742154678632,31.20576657,126.82,126.77,17.03746657]
[1742154679339,24.89746657,126.82,126.77,23.34796657]
[1742154679536,7.86,126.82,126.78,17.03746657]
[1742154679741,41.99491543,126.83,126.78,17.03746657]
[1742154680051,49.85491543,126.83,126.78,17.03746657]
[1742154680546,49.85491543,126.83,126.78,23.34736657]
[1742154681147,17.03746657,126.82,126.77,17.03746657]
[1742154682356,18.64964886,126.83,126.79,17.03746657]
[1742154682563,26.50964886,126.83,126.79,17.03746657]
[1742154683142,32.81734886,126.83,126.79,17.03746657]
[1742154683639,49.85481543,126.83,126.78,17.03746657]
[1742154684369,6.3056,126.87,126.8,17.03746657]
[1742154684548,23.34406657,126.85,126.8,17.03746657]
[1742154685151,17.03746657,126.84,126.79,18.68376657]
[1742154685457,14.1666,126.85,126.79,18.68376657]
[1742154685458,35.68711543,126.83,126.79,1.6463]
[1742154685658,17.03746657,126.82,126.79,1.6463]
[1742154686642,6.3086,126.81,126.79,1.6463]
[1742154687034,6.3086,126.81,126.74,18.00860785]
[1742154687234,6.3086,126.81,126.75,1.6763]
[1742154687235,17.03746657,126.79,126.75,1.6763]
[1742154687441,18.64964886,126.76,126.75,0.03]
[1742154687647,35.68711543,126.76,126.75,0.03]
[1742154688676,41.99821543,126.76,126.75,0.03]
[1742154689766,41.99821543,126.76,126.73,0.03]
[1742154689767,18.64964886,126.75,126.73,0.03]
[1742154690060,43.54711543,126.74,126.73,0.03]
[1742154690269,24.89746657,126.74,126.73,0.03]
[1742154690445,7.86,126.74,126.73,0.03]
[1742154693951,17.03746657,126.77,126.73,0.03]
[1742154694150,43.54711543,126.78,126.73,17.06746657]
[1742154694673,43.54711543,126.78,126.73,23.37966657]
[1742154695167,7.86,126.78,126.74,17.03746657]
[1742154695343,7.86,126.78,126.74,18.60096657]
[1742154695869,7.86,126.78,126.74,1.5635]
[1742154696072,24.89746657,126.78,126.74,1.5635]
[1742154696586,31.20756657,126.78,126.74,1.5635]
[1742154696943,24.89746657,126.78,126.74,7.8755]
[1742154697265,17.03746657,126.81,126.76,17.03746657]
[1742154697466,35.68711543,126.82,126.77,17.03746657]
[1742154697768,26.48964886,126.82,126.78,17.03746657]
[1742154698350,24.87746657,126.83,126.78,17.03746657]
[1742154698667,17.03746657,126.83,126.78,17.03746657]
[1742154698981,43.52711543,126.84,126.79,23.34706657]
[1742154699573,6.3063,126.86,126.8,18.60096657]
[1742154699863,35.68711543,126.85,126.8,18.60096657]
[1742154700065,24.87746657,126.86,126.81,17.03746657]
[1742154700263,35.68711543,126.87,126.82,17.03746657]
[1742154700463,43.52711543,126.87,126.82,17.03746657]
[1742154700665,49.83281543,126.87,126.82,17.03746657]
[1742154701557,43.52711543,126.87,126.82,23.34556657]
[1742154702057,35.68711543,126.87,126.82,23.34556657]
[1742154702459,41.99281543,126.87,126.82,17.03746657]
[1742154705171,6.3053,126.88,126.83,17.03746657]
[1742154705379,6.3053,126.88,126.84,17.03746657]
[1742154706357,6.3053,126.88,126.83,17.03746657]
[1742154706567,41.99181543,126.89,126.84,17.03746657]
[1742154706762,17.03746657,126.87,126.82,17.03746657]
[1742154707685,17.03746657,126.86,126.81,17.03746657]
[1742154707988,17.03746657,126.85,126.8,18.60096657]
[1742154708488,6.3071,126.84,126.8,18.60096657]
[1742154708663,23.34456657,126.84,126.8,1.5635]
[1742154708865,23.34426657,126.85,126.8,18.60096657]
[1742154709189,6.3068,126.85,126.81,17.03746657]
[1742154710855,23.34426657,126.85,126.8,18.60096657]
[1742154711061,23.34426657,126.85,126.81,17.03746657]
[1742154711664,6.3068,126.85,126.81,17.03746657]
[1742154713984,6.3061,126.86,126.82,17.03746657]
[1742154714182,6.3061,126.86,126.83,17.03746657]
[1742154714686,6.3686,126.87,126.83,17.03746657]